Cogmind - Beta 10.1 @@@ ROGUE MODE // 2020.10.13 @ 17:51:15 Player: Dusanh Result: Destroyed by 8R-AWN with 8R-AWN's Boregun Performance ------------- Evolutions (0) 0 Regions Visited (3) 600 Robots Destroyed (25) 125 Value Destroyed (443) 443 Prototype IDs (23) 460 Alien Tech Used (0) 0 Bonus (-1092) -1092 TOTAL SCORE: 536 Bonus ------- Follower Combat Kills 33 Aligned with FarCom 300 Friendly Fire -1425 Cogmind --------- Core Integrity 0/250 Matter 262/300 Energy 98/250 System Corruption 18% Temperature Cool (11) Movement Treading (160) Location -10/Exiles Parts ------- > --- POWER (1) -------- Ion Engine > --- PROPULSION (2) --- Light Treads Light Treads > --- UTILITY (2) ------ Large Storage Unit Light Armor Plating > --- WEAPON (2) ------- Latent Energy Streamer > --- INVENTORY (10) --- Improved Ion Engine Large Storage Unit Lightpack 2.0 Light Armor Plating Heavy Assault Rifle Heavy Assault Rifle Grenade Launcher Longsword +1 Peak State ------------ > --- POWER ------------ Ion Engine > --- PROPULSION ------- Light Treads Light Treads > --- UTILITY ---------- Large Storage Unit Light Armor Plating > --- WEAPON ----------- Latent Energy Streamer Heavy Assault Rifle > --- INVENTORY -------- Improved Ion Engine Large Storage Unit Lightpack 2.0 Light Armor Plating Light Armor Plating Heavy Assault Rifle Heavy Assault Rifle Grenade Launcher Longsword +1 [Rating: 20] Favorites ----------- Power Ion Engine Engine Ion Engine Propulsion Light Treads Treads Light Treads Wheel Wheel Hover Unit Hover Unit Utility Large Storage Unit Storage Large Storage Unit Protection Light Armor Plating Weapon Heavy Assault Rifle Energy Gun EM Pulse Gun Energy Cannon Latent Energy Streamer Ballistic Gun Heavy Assault Rifle Impact Weapon Mace Build | -11 -10 -10 -10 ------- Run | Scr Mat Min Exi Slots Evolved . | . . . . Power . | . . . . Propulsion . | . . . . Utility . | . . . . Weapon . | . . . . Parts Attached 36 | 5 22 7 2 Power 5 | 1 3 1 . Engine 5 | 1 3 1 . Core . | . . . . Reactor . | . . . . Propulsion 9 | 2 5 2 . Treads 6 | 2 2 2 . Leg . | . . . . Wheel 2 | . 2 . . Hover 1 | . 1 . . Flight . | . . . . Utility 9 | 1 6 1 1 Device . | . . . . Storage 3 | 1 2 . . Processor . | . . . . Hackware . | . . . . Protection 6 | . 4 1 1 Artifact . | . . . . Weapon 13 | 1 8 3 1 Energy Gun 3 | 1 2 . . Energy Cannon 1 | . . . 1 Ballistic Gun 7 | . 5 2 . Ballistic Cannon . | . . . . Launcher . | . . . . Special Weapon . | . . . . Impact Weapon 2 | . 1 1 . Slashing Weapon . | . . . . Piercing Weapon . | . . . . Special Melee Weapon . | . . . . Unidentified Prototypes . | . . . . Parts Lost 10 | . 5 3 2 Power 2 | . 1 1 . Propulsion 2 | . 1 1 . Utility 2 | . . 1 1 Weapon 4 | . 3 . 1 Highest Loss Streak 3 | . 3 2 1 Average Slot Usage (%) 92 | . 90 88 99 Engine 12 | . 12 12 14 Treads 20 | . 24 10 28 Wheel 4 | . 2 9 . Storage 14 | . 14 14 14 Protection 12 | . 9 13 14 Energy Gun 4 | . 11 . . Energy Cannon 1 | . . . 4 Ballistic Gun 21 | . 14 28 22 Naked Turns . | . . . . Heaviest Build 37 | 9 28 30 37 Greatest Support 40 | 40 40 40 40 Greatest Overweight (x) 2 | 2 2 2 . Average Overweight (x) . | . . 1 . Largest Inventory Capacity 10 | 6 10 10 10 Average Capacity 9 | 5 8 10 10 Most Carried 10 | 5 10 10 10 Average Carried 8 | 2 7 9 9 Final Capacity 10 | 6 10 10 10 Final Carried 10 | 5 10 10 9 Class Distribution -------------------- 60% | Mutant 39% | Scavenger-Mutant Dominant Class ---------------- Mutant | -10/Materials Mutant | -10/Mines Scavenger-Mutant | -10/Exiles Resources | -11 -10 -10 -10 ----------- Run | Scr Mat Min Exi Matter Collected 707 | 198 275 234 . Remotely . | . . . . Salvage Created 747 | . 494 103 150 Parts 46 | . 30 3 13 Haulers Intercepted . | . . . . Recyclers Shooed . | . . . . Parts Field Recycled . | . . . . Retrieved Matter . | . . . . Parts Self-Destructed . | . . . . Prevented . | . . . . Kills | -11 -10 -10 -10 ------- Run | Scr Mat Min Exi Combat Hostiles Destroyed 15 | . 12 3 . Guns 12 | . 9 3 . AOE 3 | . 3 . . Classes Destroyed 6 | . 4 1 1 Recycler 1 | . 1 . . Watcher 1 | . 1 . . Swarmer 6 | . 6 . . Grunt 7 | . 6 1 . Sentry 1 | . . 1 . Assembled 7 | . . . 7 Best Kill Streak 5 | . 5 1 1 Combat Bots Only 4 | . 4 1 . Max Kills in Single Turn 7 | . 2 1 7 Gunslinging . | . . . . Exploded 2 | . 2 . . Melee . | . . . . Uniques/NPCs Destroyed 2 | . . 1 1 YI-UF0 (-10/Mines) EX-HEX (-10/Exiles) Combat | -11 -10 -10 -10 -------- Run | Scr Mat Min Exi Damage Taken 1592 | . 763 382 447 Core 266 | . 125 39 102 Absorbed by Shields . | . . . . Core Remaining (%) 100 | 100 . . . Volleys Fired 57 | . 31 18 8 Largest 2 | . 2 2 2 Hottest 83 | . 60 46 83 Shots Fired 108 | . 59 36 13 Gun 102 | . 59 36 7 Cannon 6 | . . . 6 Launcher . | . . . . Special . | . . . . Kinetic 76 | . 33 36 7 Thermal 7 | . 7 . . Explosive . | . . . . Electromagnetic 25 | . 19 . 6 Robot Hit Streak 7 | . 7 6 3 Robot Miss Streak 6 | . 6 3 1 Penetration Max . | . . . . Secondary Targets 2 | . 2 . . Max Gunslinging Chain 1 | . 1 . . Shots Hit Robots 64 | . 36 22 6 Core Hits 39 | . 20 7 12 Critical Hits . | . . . . Critical Kills . | . . . . Critical Parts Destroyed . | . . . . Melee Attacks . | . . . . Impact . | . . . . Slashing . | . . . . Piercing . | . . . . Sneak Attacks . | . . . . Combat Hostiles . | . . . . Follow-up Attacks . | . . . . Damage Inflicted 1843 | . 740 335 768 Guns 825 | . 433 335 57 Cannons . | . . . . Explosions 1018 | . 307 . 711 Melee . | . . . . Ramming . | . . . . Kinetic 627 | . 235 335 57 Thermal 264 | . 264 . . Explosive . | . . . . Electromagnetic 952 | . 241 . 711 Impact . | . . . . Slashing . | . . . . Piercing . | . . . . Highest Corruption 18 | . . . 18 Average Corruption 10 | . . . 10 Corruption Purged . | . . . . Effects 5 | . . . 5 Message Errors 2 | . . . 2 Matter Fused 1 | . . . 1 Energy Discharges 1 | . . . 1 Data Loss (minor) 1 | . . . 1 Overload Shots . | . . . . Overflow Damage 110 | . 98 . 12 Projectiles . | . . . . Explosions 110 | . 98 . 12 Melee . | . . . . Knockbacks . | . . . . Impact . | . . . . Kinetic . | . . . . Secondary . | . . . . Self-Inflicted Damage 132 | . 132 . . Shots 3 | . 3 . . Rammed . | . . . . Targets Rammed . | . . . . Kicked . | . . . . Crushed . | . . . . Highest Temperature 51 | . 51 36 30 Average Temperature 16 | . 15 17 18 Received Heat Transfer 375 | . 234 141 . Siege Activations . | . . . . Robots Corrupted . | . . . . Combat Hostiles . | . . . . Parts Fried . | . . . . Impact Corruptions . | . . . . Robots Melted . | . . . . Combat Hostiles . | . . . . Parts Melted . | . . . . Heat Transferred 275 | . 275 . . Parts Sabotaged . | . . . . Parts Stolen . | . . . . Parts Stripped . | . . . . Power Chain Reactions 3 | . 3 . . Missiles Intercepted . | . . . . Latent Energy Used 1157 | . . . 1157 LE Corruption 18 | . . . 18 Alert | -11 -10 -10 -10 ------- Run | Scr Mat Min Exi Peak Influence 213 | . 213 57 . Initial 24 | . . 24 . Average 61 | . 83 44 . Maximum Alert Level 1 | . 1 . . Low Security (%) 96 | 100 93 100 . Level 1 3 | . 6 . . Level 2 . | . . . . Level 3 . | . . . . Level 4 . | . . . . Level 5 . | . . . . High Security . | . . . . Max Security . | . . . . Squads Dispatched 2 | . 2 . . Investigation . | . . . . Extermination . | . . . . Reinforcement 2 | . 2 . . Assault . | . . . . Garrison . | . . . . Intercept . | . . . . Construction Impeded . | . . . . Haulers Reinforced . | . . . . Stealth | -11 -10 -10 -10 --------- Run | Scr Mat Min Exi Distress Signals . | . . . . Communications Jammed . | . . . . Distress Signals . | . . . . Times Spotted 25 | . 18 6 1 Peak Tracking Total 4 | . 4 2 2 Tactical Retreats 1 | . . 1 . Traps | -11 -10 -10 -10 ------- Run | Scr Mat Min Exi Traps Triggered 2 | . 2 . . Indirectly . | . . . . Trap Hack Attempts . | . . . . Triggered . | . . . . Disarmed . | . . . . Reprogrammed . | . . . . Reused . | . . . . Traps Extracted . | . . . . Installed . | . . . . Triggered . | . . . . Machines | -11 -10 -10 -10 ---------- Run | Scr Mat Min Exi Machines Disabled 14 | . 5 . 9 Max in Single Turn 3 | . 3 . 3 Machines Sabotaged . | . . . . Garrisons Compromised . | . . . . Overloaded Fab Kills . | . . . . Fab Network Shutdowns . | . . . . Hacking | -11 -10 -10 -10 --------- Run | Scr Mat Min Exi Machines Accessed 5 | . 3 . 2 Terminals 3 | . 3 . . Fabricators . | . . . . Repair Stations . | . . . . Recycling Units . | . . . . Scanalyzers . | . . . . Garrison Access . | . . . . Total Hacks 17 | . 12 . 5 Successful 13 | . 8 . 5 Failed 4 | . 4 . . Catastrophic 1 | . 1 . . Database Lockouts . | . . . . Manual 12 | . 11 . 1 Terminals 12 | . 12 . . Fabricators . | . . . . Repair Stations . | . . . . Recycling Units . | . . . . Scanalyzers . | . . . . Garrison Access . | . . . . Terminal Hacks 8 | . 3 . 5 Record 4 | . . . 4 Unreport Threat 1 | . 1 . . Hauler Manifests 1 | . 1 . . Zone Layout 1 | . 1 . . EX-Prototype ID Bank 1 | . . . 1 Fabricator Hacks . | . . . . Repair Station Hacks . | . . . . Recycling Unit Hacks . | . . . . Scanalyzer . | . . . . Garrison Access Hacks . | . . . . Unauthorized Hacks 5 | . 5 . . Terminals 5 | . 5 . . Track 3 | . 3 . . Botnet 2 | . 2 . . Fabricators . | . . . . Repair Stations . | . . . . Recycling Units . | . . . . Scanalyzers . | . . . . Garrison Access . | . . . . Data Cores Recovered . | . . . . Used . | . . . . Hacking Detections 3 | . 3 . . Full Trace Events . | . . . . Feedback Events . | . . . . Feedback Blocked . | . . . . Robot Schematics Acquired . | . . . . Robots Built . | . . . . Matter . | . . . . Time . | . . . . Total Robot Build Rating . | . . . . Part Schematics Acquired . | . . . . Parts Built . | . . . . Matter . | . . . . Time . | . . . . Total Part Build Rating . | . . . . Parts Repaired . | . . . . Time . | . . . . Parts Recycled . | . . . . Recycled Matter . | . . . . Retrieved Matter . | . . . . Retrieved Components . | . . . . Parts Scanalyzed . | . . . . Part Schematics Acquired . | . . . . Parts Damaged . | . . . . Bothacking | -11 -10 -10 -10 ------------ Run | Scr Mat Min Exi Used RIF Installer . | . . . . Robots Hacked . | . . . . Non-combat . | . . . . Combat . | . . . . Robot Hacks Applied . | . . . . Relay Couplers Released . | . . . . Robots Rewired . | . . . . Allies Hacked . | . . . . Hacks Repelled . | . . . . Allies | -11 -10 -10 -10 -------- Run | Scr Mat Min Exi Total Allies 1 | . . 1 . Largest Group 1 | . . 1 . Highest-Rated Group 31 | . . 31 . Highest-Rated Ally 31 | . . 31 . Total Orders . | . . . . Ally Attacks 4 | . . 4 . Total Damage 86 | . . 86 . Kills 1 | . . 1 . Allies Corrupted . | . . . . Allies Melted . | . . . . Intel | -11 -10 -10 -10 ------- Run | Scr Mat Min Exi Robot Analysis Total . | . . . . Derelict Logs Recovered 1 | . . 1 . Drone Launches . | . . . . Drone Recoveries . | . . . . Exploration | -11 -10 -10 -10 ------------- Run | Scr Mat Min Exi Turns Passed 2323 | 69 808 788 658 Spaces Moved 1378 | 38 375 582 383 Core 5 | 5 . . . Treads 892 | 33 299 177 383 Legs . | . . . . Wheels 481 | . 76 405 . Hover . | . . . . Flight . | . . . . Fastest Speed 50 | 50 90 100 160 Average Speed 138 | 152 146 118 160 Slowest Speed 180 | 160 180 180 160 Overloaded Moves . | . . . . Propulsion Burnouts . | . . . . Robots Hopped . | . . . . Cave-ins Triggered . | . . . . Exploration Rate (%) 60 | 4 66 99 72 Regions Visited 3 Branch Regions 2 Pre-discovered Areas 2 | . . 1 1 Known Exits Taken . | . . . . Unknown Exits Taken 3 | 1 1 1 . Scrap Searched 1 | . . 1 . Spaces Dug 12 | . . . 12 Terrain Destroyed 153 | . 23 . 130 Melee . | . . . . Projectile . | . . . . AOE 153 | . 23 . 130 Terrain Rammed . | . . . . Walls Destroyed . | . . . . Machines Disabled . | . . . . Actions | -11 -10 -10 -10 --------- Run | Scr Mat Min Exi Total 1678 | 47 568 646 417 Wait 172 | . 124 30 18 Move 1375 | 37 374 581 383 Hop . | . . . . Pick Up 22 | 5 10 5 2 Fast Attach 18 | 5 10 2 1 Attach 8 | . 5 2 1 Detach 2 | . 2 . . Swap 10 | . 7 3 . Drop 14 | . 5 5 4 Fire 57 | . 31 18 8 Melee . | . . . . Ram . | . . . . Kick . | . . . . Crush . | . . . . Escape Stasis . | . . . . Rewire . | . . . . Trap . | . . . . Miscellaneous . | . . . . Route ------- -11/Scrapyard -10/Materials (discovered 2 exits: [Mat] / [*Min]) -10/Mines (discovered 3 exits: [*Mat x2] / *Exi) -10/Exiles (discovered 1 exit: [*Min]) History --------- Turn | Location | Event 17 | -11/Scrapyard | Discovered new exit (range 15) 70 | -11/Scrapyard | Entered Materials 300 | -10/Materials | Build established: Mutant 496 | -10/Materials | Discovered new exit (range 9) 802 | -10/Materials | Lost 3 parts (1p2w) 806 | -10/Materials | Discovered new exit (range 15) 878 | -10/Materials | Entered Mines 883 | -10/Mines | Core integrity fell below 50% 1000 | -10/Mines | Found a hidden stash of uninstalled traps 1007 | -10/Mines | YI-UF0 nonchalantly dropped a Grenade Launcher on the ground 1119 | -10/Mines | Discovered new exit (range 12) 1144 | -10/Mines | Destroyed YI-UF0 1156 | -10/Mines | Received a Mining Laser from a helpful Derelict 1213 | -10/Mines | Discovered new exit (range 7) 1259 | -10/Mines | Deemed a non-threat by the Exiles lab entrance 1660 | -10/Mines | Discovered new exit (range 5) 1666 | -10/Mines | Entered Exiles 1675 | -10/Exiles | Build established: Scavenger-Mutant 1705 | -10/Exiles | Met 8R-AWN 1732 | -10/Exiles | Met EX-HEX 1806 | -10/Exiles | Met EX-DEC 1844 | -10/Exiles | Learned location of Zion (-7) 1918 | -10/Exiles | Discovered new exit (range 12) 2022 | -10/Exiles | Met EX-BIN 2047 | -10/Exiles | Aligned with FarCom system 2049 | -10/Exiles | Given EX-Vault access code 2087 | -10/Exiles | Opened EX-Vault 2100 | -10/Exiles | Found Lightpack 2.0 2111 | -10/Exiles | Found Longsword +1 2114 | -10/Exiles | Found Latent Energy Streamer 2146 | -10/Exiles | Warned to stay clear of 0b10 Research branches 2212 | -10/Exiles | Attacked by the Exiles 2218 | -10/Exiles | Destroyed EX-HEX 2245 | -10/Exiles | Core integrity fell below 20% 2279 | -10/Exiles | System corruption reached 10% 2324 | -10/Exiles | Destroyed by 8R-AWN with 8R-AWN's Boregun Last Messages --------------- 02242_ Lgt. Armor Plating destroyed. 02244_ Penetrated by HV Slug. 02245_ OJ0V&OBRY%=,G9FWIR2YEDCAAY X%<5F%LGCB 02251_ Penetrated by HV Slug. 02251_ Critical hit. 02251_ Penetrated by HV Slug. 02261_ System corrupted: Matter fused (-7). 02278_ Machine disabled. 02278_ BIN's Workstation disabled. 02279_ HV Slug penetrates Wall. 02281_ Penetrated by HV Slug. 02281_ HV Slug penetrates Wall. 02285_ Penetrated by HV Slug. 02292_ Critical hit. 02292_ Hvy. Assault Rifle destroyed. 02292_ HV Slug penetrates Wall. 02294_ System corrupted: Component data lost. 02294_ Penetrated by HV Slug. 02314_ System corrupted: Energy discharge (-66). 02324_ Penetrated by HV Slug. Map ----- +----------------------------------------------------+ | | | | | | | | | | | | | ???????????????????????????#########?????????????? | | ???????????????????????????# ! ]#?????????????? | | ???????????????????????????# [ #?????????????? | | ???????????????????????????# ]#?????????????? | | ???????????????????????????# X#?????????????? | | ???????????????????????????## ##?????????????? | | ???????????????????????????#X #??????????????? | | ???????????????????????????## #??????????????? | | ????????????????????????????# #??????????????? | | ????????????????????????????# #???###????????? | | ????????????????????????????# #??"""""???????? | | ????????????????????????????# ## """???????? | | ????????????????????????????# X""???????? | | ????????????????????????????# ## """???????? | | ????????????????????######### #??"""""???????? | | ????????????????????#""""""## ##??###????????? | | ????????????????????#"""" ## ;##????????????? | | ????????????????????#""X" ; #????????????? | | ????????????????????# g " #????????????? | | ????????????????????# @ ## " #????????????? | | ????????????????# ; ""## # #########????? | | ???????????????# ;;;; ;;#### #?#"""""""#????? | | ???????????????# ; ; ???# #?#"""""""#????? | | ???????????????# ; ; ???# #?#"""""""#????? | | ???????????????# ; ; ??## ###"" """"#????? | | ##?????????????# ; ; ??#" """"#????? | | "#?????????????## ;;;;;; ??#" """#????? | | "#?????????????# #??#" """#????? | | "#?????????????#### ####???#" """#????? | | "#??????????########???????#" """#????? | | "#??????????# """#???????#" """#????? | | "#??????????#"" """#???????## """"????? | | ##??????????#"" #????????# """#????? | | ????????????#"" #????????#" "X" """"????? | | #???????????#"" "#????????#" """ #????? | | #???????????# ""#????????#" """"""""#????? | | ###?????????#"" ""#???????##" "########????? | | ##????????### ###??????##" ????????????? | | ######???### ###?######"" " ????????????? | | """#####X# #"###""""""" "" ????????????? | | """""" " "" ""???########## | | "" """ " "####""""""""" | | " " " """ """ | | ## "" " | +----------------------------------------------------+ Best States ------------- Heat Dissipation 25 Energy Generation 10 Energy Capacity 250 Matter Stores 300 Matter Capacity 300 Sight Range 16 Terrain Scan Density 10 Armor Coverage 150 Evasion (%) 42 Recoil Reduction 2 Item Schematics ----------------- None Robot Schematics ------------------ None Fabricated ------------ Nothing Alien Tech Used ----------------- None Achievements -------------- None Challenges ------------ None Game ------ Seed ColdRefineryDesublimator Manual? 0 Play Time 00:29:22 Cumulative 129.6 hours Start 2020.10.13 @ 17:20:49 End 2020.10.13 @ 17:51:15 Sessions 3 Manual Loads 0 Difficulty Rogue Special Mode None Game No. 71 Rogue 71 Adventurer 0 Explorer 0 Win Type - Total 4 Types 2/1/0/1/0/0/0/0/0 Lore% 65 Gallery% 71 Achievement% 69 Wizard Run 0 Options --------- ASCII 0 Keyboard 0 Movement Numpad Keybinds 0 Fullscreen 1 Font 18/SmallcapsGlow Map View 76x50 Tactical HUD 1 Map Filters NONE Filters NONE Steam 1 RUN: 61cfc4dc-36c3-44c3-8835-64ace9a672af